Cogmind - Beta 16.1 *** ADVENTURER MODE // 2026.02.22 @ 22:50:50 Player: liability Result: Smashed by cave-in Performance ------------- Evolutions (0) 0 Regions Visited (2) 400 Robots Destroyed (26) 130 Value Destroyed (439) 439 Prototype IDs (0) 0 Alien Tech Used (0) 0 Bonus (0) 0 TOTAL SCORE: 969 Bonus ------- None Cogmind --------- Core Integrity 0/250 Matter 23/300 Energy 79/100 System Corruption 4% Temperature Cool (0) Movement Core (200) Ox3 Location -10/Mines Parts ------- > --- POWER (1) -------- (None) > --- PROPULSION (2) --- (None) > --- UTILITY (2) ------ Medium Storage Unit > --- WEAPON (2) ------- (None) > --- INVENTORY (10) --- Heat Sink Medium Matter Pod (0) Medium Matter Pod (0) Datajack Peak State ------------ > --- POWER ------------ Light Ion Engine > --- PROPULSION ------- Wheel Compact Wheel > --- UTILITY ---------- Small Storage Unit Seismic Detector > --- WEAPON ----------- EM Pulse Gun Assault Rifle > --- INVENTORY -------- (None) [Rating: 7] Favorites ----------- Power Ion Engine Engine Ion Engine Propulsion Light Treads Treads Light Treads Wheel Wheel Utility Seismic Detector Device Seismic Detector Storage Medium Storage Unit Protection Light Armor Plating Weapon Assault Rifle Energy Gun EM Pulse Gun Ballistic Gun Assault Rifle Ballistic Cannon Light Cannon Launcher Grenade Launcher Build | -11 -10 -10 ------- Run | Yrd Mat Min Slots Evolved . | . . . Power . | . . . Propulsion . | . . . Utility . | . . . Weapon . | . . . Parts Attached 17 | 7 6 4 Power 2 | 1 1 . Engine 2 | 1 1 . Core . | . . . Reactor . | . . . Propulsion 5 | 2 3 . Treads 2 | . 2 . Leg . | . . . Wheel 3 | 2 1 . Hover . | . . . Flight . | . . . Utility 4 | 2 1 1 Device 1 | 1 . . Storage 2 | 1 1 . Processor . | . . . Hackware . | . . . Protection 1 | . . 1 Artifact . | . . . Weapon 6 | 2 1 3 Energy Gun 1 | 1 . . Energy Cannon . | . . . Ballistic Gun 1 | 1 . . Ballistic Cannon 1 | . . 1 Launcher 3 | . 1 2 Special Weapon . | . . . Impact Weapon . | . . . Slashing Weapon . | . . . Piercing Weapon . | . . . Special Melee Weapon . | . . . Unidentified Prototypes . | . . . Parts Lost 10 | . 1 9 Power 1 | . . 1 Propulsion 2 | . . 2 Utility 2 | . . 2 Weapon 5 | . 1 4 Highest Loss Streak 9 | . 1 9 To Critical Strikes . | . . . Average Backups 4 | . 2 6 Power . | . . . Propulsion . | . . . Utility 2 | . 1 4 Weapon 1 | . 1 1 Tool/Special . | . . . Unused Backups 5 | . 1 4 Power . | . . . Propulsion 1 | . 1 . Utility 3 | . . 3 Weapon . | . . . Tool/Special 1 | . . 1 Average Slot Usage (%) 97 | . 98 96 Engine 13 | . 14 12 Treads 20 | . 7 26 Wheel 7 | . 20 . Device 13 | . 14 13 Storage 14 | . 14 14 Energy Gun 2 | . 5 . Ballistic Gun 10 | . 14 8 Ballistic Cannon 2 | . . 4 Launcher 11 | . 7 13 Peak Build Rating 7 | 7 7 7 Average Rating 6 | 4 6 6 On Entrance 4 | . 7 7 Avg Prop Armor Cover (%) 13 | . . 13 Naked Turns . | . . . Heaviest Build 22 | 13 21 22 Greatest Support 40 | 26 40 40 Greatest Overweight (x) 5 | 2 1 5 Average Overweight (x) . | . . . Largest Inventory Capacity 10 | 8 10 10 Average Capacity 9 | 6 9 10 Most Carried 7 | . 6 7 Average Carried 4 | . 2 6 Final Capacity 10 | 8 10 10 Final Carried 6 | . 6 4 Class Distribution -------------------- 64% | Scavenger-Mutant 35% | Mutant Dominant Class ---------------- Mutant | -10/Materials Scavenger-Mutant | -10/Mines Resources | -11 -10 -10 ----------- Run | Yrd Mat Min Matter Collected 373 | 248 121 4 Remotely . | . . . Salvage Created 532 | 25 422 85 Parts 47 | 4 32 11 Haulers Intercepted 2 | . 2 . Recyclers Shooed . | . . . Parts Field Recycled . | . . . Retrieved Matter . | . . . Parts Self-Destructed . | . . . Prevented . | . . . Parts Restored . | . . . Kills | -11 -10 -10 ------- Run | Yrd Mat Min Combat Hostiles Destroyed 21 | . 10 11 Guns 6 | . 4 2 Cannons 1 | . . 1 AOE 14 | . 6 8 Classes Destroyed 8 | 1 6 1 Worker 4 | . 2 2 Builder 1 | . 1 . Tunneler 2 | 1 . 1 Hauler 2 | . 2 . Watcher 2 | . 2 . Swarmer 9 | . 6 3 Grunt 6 | . 4 2 Assembled 6 | . . 6 Best Kill Streak 7 | 1 7 6 Combat Bots Only 6 | . 3 6 Max Kills in Single Turn 3 | 1 3 2 Gunslinging . | . . . Exploded 3 | . 3 2 Melee . | . . . Uniques/NPCs Destroyed . | . . . Combat | -11 -10 -10 -------- Run | Yrd Mat Min Hostile Shots Fired 79 | . 25 54 Missed 18 | . 3 15 Hits 61 | . 22 39 Melee 3 | . . 3 Projectile 58 | . 22 36 AOE 9 | . . 9 Part Disruptions 1 | . . 1 Damage Taken 1279 | . 265 1014 Core 278 | . 54 224 Absorbed by Shields . | . . . Ignored by Resistances 300 | . 80 220 Core Remaining (%) 100 | 100 . . Volleys Fired 45 | 1 28 16 Largest 2 | 2 2 2 Hottest 60 | 60 60 60 Shots Fired 79 | 2 50 27 Gun 52 | 2 43 7 Cannon 7 | . . 7 Launcher 20 | . 7 13 Special . | . . . Kinetic 43 | 1 28 14 Thermal . | . . . Explosive 20 | . 7 13 Electromagnetic 16 | 1 15 . Robot Hit Streak 24 | 2 14 24 Robot Miss Streak 2 | . 2 . Penetration Max . | . . . Secondary Targets 1 | . 1 . Max Gunslinging Chain 1 | . 1 . Shots Hit Robots 61 | 2 36 23 Core Hits 51 | 1 25 25 Critical Kills . | . . . Critical Parts Destroyed . | . . . Critical Strikes . | . . . Melee Attacks . | . . . Impact . | . . . Slashing . | . . . Piercing . | . . . Sneak Attacks . | . . . Combat Hostiles . | . . . Follow-up Attacks . | . . . Damage Inflicted 2103 | 30 941 1132 Guns 573 | 30 457 86 Cannons 101 | . . 101 Explosions 1411 | . 479 932 Melee . | . . . Ramming 18 | . 5 13 Kinetic 463 | 15 261 187 Thermal 231 | . 97 134 Explosive 1180 | . 382 798 Electromagnetic 211 | 15 196 . Impact . | . . . Slashing . | . . . Piercing . | . . . Highest Corruption . | . . . Average Corruption . | . . . Corruption Purged . | . . . Corruption Blocked . | . . . Overload Shots . | . . . Overflow Damage 26 | . . 26 Projectiles . | . . . Explosions 26 | . . 26 Melee . | . . . Knockbacks 2 | . . 2 Impact 1 | . . 1 Kinetic 1 | . . 1 Secondary . | . . . Self-Inflicted Damage 203 | . 93 110 Shots 10 | . 4 6 Rammed 2 | . 1 1 Targets Rammed 3 | . 1 2 Kicked . | . . . Crushed 1 | . . 1 Highest Temperature 48 | . 48 15 Average Temperature 16 | . 21 6 Received Heat Transfer 293 | . 78 215 Siege Activations . | . . . Martial Activations . | . . . Shielding Activations . | . . . Robots Disrupted . | . . . Combat Hostiles . | . . . Robots Corrupted . | . . . Combat Hostiles . | . . . Parts Fried 1 | . 1 . Impact Corruptions . | . . . Robots Melted . | . . . Combat Hostiles . | . . . Parts Melted . | . . . Heat Transferred 300 | . 150 150 Parts Sabotaged . | . . . Parts Stolen . | . . . Parts Stripped . | . . . Power Chain Reactions 2 | . 2 . Alert | -11 -10 -10 ------- Run | Yrd Mat Min Maximum Alert Level 1 | . 1 . Low Security (%) 96 | 100 88 100 Level 1 3 | . 11 . Level 2 . | . . . Level 3 . | . . . Level 4 . | . . . Level 5 . | . . . High Security . | . . . Max Security . | . . . Peak Influence 239 | 5 239 131 Initial 78 | . . 78 Average 65 | . 109 50 Influence Increases 615 | 5 359 251 Destroy 0b10 Robot/C 300 | . 200 100 Destroy 0b10 Robot/NC 55 | 5 35 15 Destroy Leader 68 | . 48 20 Successful Hack 10 | . 10 . Disable Machine 54 | . 18 36 Destroy Structure 113 | . 48 65 Lose Combat Pursuer 15 | . . 15 Influence Decreases 615 | 5 120 490 Entered New Map 161 | . . 161 Time Decay 343 | 5 110 228 Lost Part 91 | . 10 81 Lost Ally 20 | . . 20 Squads Dispatched 1 | . 1 . Investigation 1 | . 1 . Extermination . | . . . Reinforcement . | . . . Assault . | . . . Garrison . | . . . Intercept . | . . . Searches Triggered . | . . . Construction Impeded . | . . . Haulers Reinforced . | . . . Active Scanning Responses . | . . . Cargo Convoy Interrupts . | . . . Stealth | -11 -10 -10 --------- Run | Yrd Mat Min Distress Signals 2 | . 1 1 Communications Jammed . | . . . Distress Signals . | . . . Times Spotted 44 | . 13 31 Peak Tracking Total 18 | . 3 18 Tactical Retreats 2 | . . 2 Traps | -11 -10 -10 ------- Run | Yrd Mat Min Traps Triggered 1 | . 1 . Indirectly . | . . . Trap Hack Attempts . | . . . Triggered . | . . . Disarmed . | . . . Reprogrammed . | . . . Reused . | . . . Traps Extracted . | . . . Installed . | . . . Triggered . | . . . Machines | -11 -10 -10 ---------- Run | Yrd Mat Min Machines Disabled 6 | . 2 4 Max in Single Turn 4 | . 1 4 Machines Repaired . | . . . Machines Dismantled . | . . . Machines Sabotaged . | . . . Overloaded Fab Kills . | . . . Hacking | -11 -10 -10 --------- Run | Yrd Mat Min Machines Accessed 1 | . 1 . Terminals . | . . . Fabricators . | . . . Repair Stations 1 | . 1 . Recycling Units . | . . . Scanalyzers . | . . . Garrison Access . | . . . Total Hacks 3 | . 3 . Successful 1 | . 1 . Failed 2 | . 2 . Catastrophic . | . . . Database Lockouts . | . . . Manual . | . . . Terminals . | . . . Fabricators . | . . . Repair Stations 3 | . 3 . Recycling Units . | . . . Scanalyzers . | . . . Garrison Access . | . . . Terminal Hacks . | . . . Fabricator Hacks . | . . . Repair Station Hacks 1 | . 1 . Scan Component 1 | . 1 . Recycling Unit Hacks . | . . . Scanalyzer . | . . . Garrison Access Hacks . | . . . Unauthorized Hacks . | . . . Terminals . | . . . Fabricators . | . . . Repair Stations . | . . . Recycling Units . | . . . Scanalyzers . | . . . Garrison Access . | . . . Data Cores Recovered . | . . . Used . | . . . Hacking Detections 1 | . 1 . Full Trace Events 1 | . 1 . Feedback Events . | . . . Feedback Blocked . | . . . Robot Schematics Acquired . | . . . Robots Built . | . . . Authchips . | . . . Time . | . . . Total Robot Build Rating . | . . . Part Schematics Acquired . | . . . Parts Built . | . . . Authchips . | . . . Time . | . . . Total Part Build Rating . | . . . Part Studies Acquired . | . . . Parts Repaired . | . . . Time . | . . . Parts Recycled . | . . . Recycled Matter . | . . . Retrieved Matter . | . . . Retrieved Components . | . . . Parts Scanalyzed . | . . . Part Schematics Acquired . | . . . Parts Damaged . | . . . Bothacking | -11 -10 -10 ------------ Run | Yrd Mat Min Used RIF Installer . | . . . Robots Hacked . | . . . Non-combat . | . . . Combat . | . . . Robot Hacks Applied . | . . . Relay Couplers Released . | . . . Fabnet Peak Effective % . | . . . Robots Rewired . | . . . Allies Hacked . | . . . Hacks Repelled . | . . . Allies | -11 -10 -10 -------- Run | Yrd Mat Min Total Allies 2 | . . 2 Largest Group 2 | . . 2 Highest-Rated Group 41 | . . 41 Highest-Rated Ally 31 | . . 31 Total Orders . | . . . Ally Attacks 2 | . . 2 Total Damage . | . . . Kills . | . . . Allies Corrupted . | . . . Allies Melted . | . . . Intel | -11 -10 -10 ------- Run | Yrd Mat Min Active Infowar (turns) 741 | 3 258 480 Seismic 741 | 3 258 480 Robot Analysis Total . | . . . Derelict Logs Recovered 1 | . . 1 Drone Launches . | . . . Drone Recoveries . | . . . Exploration | -11 -10 -10 ------------- Run | Yrd Mat Min Turns Passed 810 | 65 258 487 Spaces Moved 475 | 59 148 268 Core 20 | 13 . 7 Treads 299 | . 38 261 Legs . | . . . Wheels 156 | 46 110 . Hover . | . . . Flight . | . . . Fastest Speed 50 | 50 90 160 Average Speed 136 | 87 108 162 Slowest Speed 300 | 150 160 300 Overloaded Moves . | . . . Propulsion Burnouts . | . . . Robots Hopped . | . . . Potential Cave-ins 7 | . . 7 Cave-ins Triggered 2 | . . 2 Exploration Rate (%) 27 | 4 26 52 Regions Visited 2 Branch Regions 1 Pre-discovered Areas 1 | . . 1 Known Exits Taken . | . . . Unknown Exits Taken 2 | 1 1 . Scrap Searched . | . . . Spaces Dug . | . . . Terrain Destroyed 143 | . 50 93 Melee . | . . . Projectile . | . . . AOE 143 | . 50 93 Terrain Rammed . | . . . Walls Destroyed . | . . . Machines Disabled . | . . . Actions | -11 -10 -10 --------- Run | Yrd Mat Min Total 553 | 66 196 291 Wait . | . . . Move 472 | 58 147 267 Hop . | . . . Pick Up 9 | . 8 1 Fast Attach 13 | 7 5 1 Attach 4 | . 1 3 Detach . | . . . Swap . | . . . Drop 7 | . 6 1 Fire 45 | 1 28 16 Melee . | . . . Ram 1 | . 1 . Kick . | . . . Crush 2 | . . 2 Escape Stasis . | . . . Rewire . | . . . Trap . | . . . Miscellaneous . | . . . Route ------- -11/Scrapyard -10/Materials -10/Mines (discovered 1 exit: [*Mat]) History --------- Turn | Location | Event 8 | -11/Scrapyard | Discovered new exit (range 15) 66 | -11/Scrapyard | Entered Materials 262 | -10/Materials | Discovered new exit (range 7) 324 | -10/Materials | Entered Mines 379 | -10/Mines | Discovered new exit (range 12) 563 | -10/Mines | Build established: Scavenger-Mutant 580 | -10/Mines | Learned location of Zion (-7) 747 | -10/Mines | Assembled infested the area 792 | -10/Mines | Core integrity fell below 50% 808 | -10/Mines | Core integrity fell below 20% 811 | -10/Mines | Crushed by falling debris 811 | -10/Mines | Crushed by falling debris 811 | -10/Mines | Smashed by cave-in Last Messages --------------- 00797_ as-01136 destroyed. 00798_ The unstable cave ceiling collapses. 00804_ Seismic Detector destroyed. 00804_ as-32658 destroyed. 00805_ as-46724 destroyed. 00805_ as-19806 destroyed. 00806_ The unstable cave ceiling collapses. 00806_ Lgt. Treads destroyed. 00806_ Grenade Launcher destroyed. 00808_ as-51873 destroyed. 00808_ as-95721 destroyed. 00808_ as-10021 destroyed. 00809_ The unstable cave ceiling collapses. 00811_ Crushed by falling debris. 00811_ Grenade Launcher destroyed. 00811_ System corrupted by crushing effect (+3). 00811_ Lgt. Armor Plating destroyed. 00811_ System corrupted by crushing effect (+1). 00811_ The unstable cave ceiling collapses. 00811_ Crushed by falling debris. Map ----- +----------------------------------------------------+ | ??# ##????# ???# #???????????? | | ??##" ##?????# #???# #???????????? | | ???####### #??????# #???# #???????????? | | ??????#### ######## #???# #???????????? | | ??????# ##### ###????????## | | ??????# ######### #????##### | | ??????# #???????# ######## #???## | | ??????# #???????# #??????# #???# | | ??????# #???????# #??????# ##### | | ??????#%#???????# #??????# ## | | ??????# #???????# ####???# """ | | ??????# #???????# ##??# """ | | ??????# #???????# ##?## """ | | ??????# #???????# ! #??## | | ??????# #???????## #???## ## | | ??????# #????????## #????# ## | | ??????# #?????????##! ##????# ## | | ??????# #??????????# ###?????#### ### | | ???#### ###????????# #??????????# #?## | | ???# #######??# #??????????# #??# | | ??## # #### ?????? ### | | ??# ## ???? | | ?# ## d #### ###????# ! | | ?# d #??? #??????## # | | ??# ##?? #???????## #? | | ?# @ #???#????????# = #? | | # % ##????????????# ? | | ?# #?????????????## ! ? | | ?# ##??????????????## * | | ?### ##### #???????????????# | | ??? ??# % ??????????????## # | | ??? ? *=??????????????# ?? | | ??? " ! ###????????????????? | | ??? #### = =% ##??????????????????? | | ???# ???## #???????????????????? | | ???? ?????# #???????????????????? | | ??? ?????# % #???????????????????? | | ???? ?????## = #???????????????????? | | ???? ??????## #???????????????????? | | ???? ????????# #???????????????????? | | ???????????????# ?????????????????????? | | ???????????????????????????????????????? | | ???????????????????????????????????????? | | ???????????????????????????????????????? | | ???????????????????????????????????????? | | ???????????????????????????????????????? | | ???????????????????????????????????????? | | ???????????????????????????????????????? | | ???????????????????????????????????????? | | ???????????????????????????????????????? | +----------------------------------------------------+ Best States ------------- Heat Dissipation 25 Energy Generation 10 Energy Capacity 250 Matter Stores 300 Matter Capacity 300 Sight Range 16 Terrain Scan Density 10 Armor Coverage 150 Resistance: KI 20 Resistance: TH 20 Resistance: EX 20 Resistance: EM 20 Resistance: I 20 Resistance: S 20 Resistance: P 20 Evasion (%) 44 Recoil Reduction 2 Offensive Hacking 10 Item Schematics ----------------- None Robot Schematics ------------------ None Fabricated ------------ Nothing Repaired ---------- Nothing Studied --------- None Alien Tech Used ----------------- None Achievements -------------- None Challenges ------------ None Game ------ Seed ChromionWarpInterface Manual? 0 Play Time 00:09:25 Cumulative 33.5 hours Start 2026.02.22 @ 22:44:21 End 2026.02.22 @ 22:50:50 Sessions 1 Manual Loads 0 Difficulty Adventurer Special Mode None Game No. 36 Rogue 0 Adventurer 36 Explorer 0 Win Type - Total 0 Types 0/0/0/0/0/0/0/0/0/0 Lore% 12 Gallery% 32 Achievement% 28 Wizard Run 0 Options --------- Layout 0 ASCII 0 Keyboard 0 Movement Mouse Keybinds 0 Fullscreen 1 Font 18/SmallcapsGlow Map View 76x50 Zoom Use 0% Tactical HUD 1 Map Filters NONE Filters NONE Steam 1 RUN: 3e3d2fcf-3e2d-4eab-a8ca-3d2e2bda0359